[Event "Early-Titled-Tuesday-Blitz-April-23-2024"]
[Site "Chess.com"]
[Date "2024.04.23"]
[Round "11"]
[White "KetiTsatsalashvili"]
[Black "kiwibobo"]
[Result "0-1"]
[WhiteElo "2414"]
[BlackElo "2327"]
[TimeControl "180+1"]
[EndTime "10:11:55 PDT"]
[Termination "kiwibobo won by resignation"]

1. d4 {[%clk 0:03:00.9]} 1... Nf6 {[%clk 0:02:59.8]} 2. Nf3 {[%clk 0:03:00.8]}
2... g6 {[%clk 0:03:00.3]} 3. c4 {[%clk 0:03:00.4]} 3... Bg7 {[%clk 0:03:00.8]}
4. Nc3 {[%clk 0:03:00.6]} 4... d5 {[%clk 0:03:01.5]} 5. cxd5 {[%clk 0:03:00]}
5... Nxd5 {[%clk 0:03:02.4]} 6. e4 {[%clk 0:03:00.5]} 6... Nxc3 {[%clk
0:03:03.2]} 7. bxc3 {[%clk 0:03:00.4]} 7... c5 {[%clk 0:03:03.9]} 8. Be2 {[%clk
0:03:00.2]} 8... O-O {[%clk 0:03:02.7]} 9. O-O {[%clk 0:02:58.5]} 9... Nc6
{[%clk 0:02:58.8]} 10. Be3 {[%clk 0:02:47.9]} 10... Bg4 {[%clk 0:02:48.6]} 11.
d5 {[%clk 0:02:39.7]} 11... Ne5 {[%clk 0:02:42]} 12. Bxc5 {[%clk 0:02:21.9]}
12... Rc8 {[%clk 0:02:15.9]} 13. Bd4 {[%clk 0:02:21.4]} 13... Nxf3+ {[%clk
0:02:11.9]} 14. Bxf3 {[%clk 0:02:21.7]} 14... Bxd4 {[%clk 0:02:08.3]} 15. cxd4
{[%clk 0:02:18.8]} 15... Bxf3 {[%clk 0:02:08.6]} 16. Qxf3 {[%clk 0:02:19.7]}
16... e6 {[%clk 0:02:05.2]} 17. dxe6 {[%clk 0:02:13.5]} 17... Qxd4 {[%clk
0:02:05.3]} 18. exf7+ {[%clk 0:01:52.3]} 18... Rxf7 {[%clk 0:02:06.2]} 19. Qe2
{[%clk 0:01:48.3]} 19... Re8 {[%clk 0:01:41.7]} 20. Rae1 {[%clk 0:01:05.4]}
20... Rf4 {[%clk 0:01:40.6]} 21. e5 {[%clk 0:01:01.8]} 21... Rf5 {[%clk
0:01:36.6]} 22. e6 {[%clk 0:01:00.6]} 22... Rf6 {[%clk 0:01:16.2]} 23. e7 {[%clk
0:01:00.8]} 23... Rf7 {[%clk 0:01:13.9]} 24. Qe6 {[%clk 0:00:48]} 24... Qc5
{[%clk 0:00:56]} 25. Rc1 {[%clk 0:00:29.3]} 25... Qxe7 {[%clk 0:00:52.1]} 26.
Qb3 {[%clk 0:00:27.9]} 26... Qe6 {[%clk 0:00:35.1]} 27. Qc3 {[%clk 0:00:24]}
27... Ref8 {[%clk 0:00:28.3]} 28. Rc2 {[%clk 0:00:21]} 28... b6 {[%clk 0:00:20]}
29. h3 {[%clk 0:00:21.3]} 29... a5 {[%clk 0:00:19.9]} 30. Qd4 {[%clk 0:00:20.9]}
30... Qf6 {[%clk 0:00:16.9]} 31. Qc4 {[%clk 0:00:19.6]} 31... Qf4 {[%clk
0:00:16.9]} 32. Qd5 {[%clk 0:00:17.8]} 32... Qb4 {[%clk 0:00:16.1]} 33. Rd2
{[%clk 0:00:17]} 33... b5 {[%clk 0:00:15.5]} 34. Re2 {[%clk 0:00:17.1]} 34... a4
{[%clk 0:00:14.9]} 35. Re6 {[%clk 0:00:16.3]} 35... Qc4 {[%clk 0:00:08.5]} 36.
Qxc4 {[%clk 0:00:15.8]} 36... bxc4 {[%clk 0:00:09.4]} 37. Rc6 {[%clk 0:00:16.3]}
37... Rf4 {[%clk 0:00:08]} 38. g3 {[%clk 0:00:15.6]} 38... Rd4 {[%clk
0:00:07.7]} 39. Ra6 {[%clk 0:00:13.4]} 39... c3 {[%clk 0:00:06.8]} 40. Rc6
{[%clk 0:00:13.7]} 40... Rd2 {[%clk 0:00:06.8]} 41. Rxc3 {[%clk 0:00:13]} 41...
Rxa2 {[%clk 0:00:07.5]} 42. Rc7 {[%clk 0:00:13.6]} 42... Re8 {[%clk 0:00:07.4]}
43. Ra7 {[%clk 0:00:14.2]} 43... Ree2 {[%clk 0:00:07.7]} 44. h4 {[%clk
0:00:14.3]} 44... a3 {[%clk 0:00:08.3]} 45. h5 {[%clk 0:00:14.8]} 45... gxh5
{[%clk 0:00:08.5]} 46. Kg2 {[%clk 0:00:14.4]} 46... Kf8 {[%clk 0:00:08.7]} 47.
Kh3 {[%clk 0:00:14.8]} 47... Rxf2 {[%clk 0:00:08.6]} 48. Rxf2+ {[%clk
0:00:15.5]} 48... Rxf2 {[%clk 0:00:09.5]} 49. Rxa3 {[%clk 0:00:15.7]} 49... Kg7
{[%clk 0:00:10.3]} 50. Ra6 {[%clk 0:00:15.6]} 50... Rf6 {[%clk 0:00:10.5]} 51.
Ra7+ {[%clk 0:00:16.1]} 51... Kg6 {[%clk 0:00:11.4]} 52. Ra8 {[%clk 0:00:16.6]}
52... h6 {[%clk 0:00:11.9]} 53. Rf8 {[%clk 0:00:16.4]} 53... Rxf8 {[%clk
0:00:11.2]} 54. Kh4 {[%clk 0:00:12.5]} 54... Ra8 {[%clk 0:00:11.5]} 55. Kh3
{[%clk 0:00:12.7]} 55... Ra4 {[%clk 0:00:11.9]} 0-1

[Event "Early-Titled-Tuesday-Blitz-April-23-2024"]
[Site "Chess.com"]
[Date "2024.04.23"]
[Round "11"]
[White "jefferyx"]
[Black "Firouzja2003"]
[Result "0-1"]
[WhiteElo "3106"]
[BlackElo "3104"]
[TimeControl "180+1"]
[EndTime "10:11:56 PDT"]
[Termination "Firouzja2003 won by resignation"]

1. e4 {[%clk 0:03:00.9]} 1... c6 {[%clk 0:02:56.4]} 2. Nf3 {[%clk 0:03:00.7]}
2... d5 {[%clk 0:02:56.9]} 3. d3 {[%clk 0:03:01.3]} 3... e6 {[%clk 0:02:52.7]}
4. e5 {[%clk 0:02:53.9]} 4... c5 {[%clk 0:02:51.5]} 5. c3 {[%clk 0:02:54.4]}
5... Nc6 {[%clk 0:02:51.5]} 6. d4 {[%clk 0:02:54.8]} 6... Bd7 {[%clk 0:02:52.2]}
7. Be2 {[%clk 0:02:43.7]} 7... Nge7 {[%clk 0:02:52.2]} 8. dxc5 {[%clk
0:02:37.3]} 8... Ng6 {[%clk 0:02:48.2]} 9. b4 {[%clk 0:02:36.4]} 9... a5 {[%clk
0:02:47.7]} 10. Qb3 {[%clk 0:02:27.3]} 10... Ncxe5 {[%clk 0:02:38.6]} 11. Nxe5
{[%clk 0:02:27.4]} 11... Nxe5 {[%clk 0:02:39.5]} 12. O-O {[%clk 0:02:26.9]}
12... Be7 {[%clk 0:02:39.2]} 13. Bf4 {[%clk 0:02:26.2]} 13... Ng6 {[%clk
0:02:36.1]} 14. Bg3 {[%clk 0:02:26.2]} 14... Bf6 {[%clk 0:02:35.8]} 15. Na3
{[%clk 0:02:10.3]} 15... axb4 {[%clk 0:02:33.8]} 16. cxb4 {[%clk 0:02:11.2]}
16... Bxa1 {[%clk 0:02:26.9]} 17. Rxa1 {[%clk 0:02:12.1]} 17... Qf6 {[%clk
0:02:25]} 18. Re1 {[%clk 0:02:11.4]} 18... Nf4 {[%clk 0:02:19.7]} 19. Bf1 {[%clk
0:02:04.6]} 19... O-O {[%clk 0:02:19.2]} 20. Nb5 {[%clk 0:02:04.6]} 20... Bc6
{[%clk 0:01:56.1]} 21. Nd6 {[%clk 0:02:01.7]} 21... d4 {[%clk 0:01:54.9]} 22. a3
{[%clk 0:01:50.9]} 22... h5 {[%clk 0:01:48.8]} 23. h4 {[%clk 0:01:50.4]} 23...
Ng6 {[%clk 0:01:44.6]} 24. b5 {[%clk 0:01:33.6]} 24... Bd5 {[%clk 0:01:43.2]}
25. Bc4 {[%clk 0:01:34.2]} 25... Bxc4 {[%clk 0:01:32.5]} 26. Qxc4 {[%clk
0:01:35.1]} 26... Rxa3 {[%clk 0:01:32.6]} 27. Ne4 {[%clk 0:01:30.7]} 27... Qf5
{[%clk 0:01:23.6]} 28. c6 {[%clk 0:01:29.9]} 28... bxc6 {[%clk 0:01:21.1]} 29.
bxc6 {[%clk 0:01:30.8]} 29... Qd5 {[%clk 0:01:13.6]} 30. Qxd5 {[%clk 0:01:24.9]}
30... exd5 {[%clk 0:01:14.5]} 31. Bd6 {[%clk 0:01:25.2]} 31... Ra6 {[%clk
0:00:58.3]} 32. Bxf8 {[%clk 0:01:24.4]} 32... Rxc6 {[%clk 0:00:58.9]} 33. Bxg7
{[%clk 0:01:07.4]} 33... Kxg7 {[%clk 0:00:58.1]} 34. Ng3 {[%clk 0:01:07.8]}
34... d3 {[%clk 0:00:52]} 35. Rd1 {[%clk 0:00:37.3]} 35... Nf4 {[%clk
0:00:51.8]} 36. Nf5+ {[%clk 0:00:37.5]} 36... Kf6 {[%clk 0:00:51.7]} 37. Ne3
{[%clk 0:00:28.2]} 37... d4 {[%clk 0:00:49]} 38. Nf1 {[%clk 0:00:28.4]} 38...
Rc2 {[%clk 0:00:43.7]} 39. Rd2 {[%clk 0:00:19.6]} 39... Ke5 {[%clk 0:00:29.2]}
40. g3 {[%clk 0:00:19.8]} 40... Ne2+ {[%clk 0:00:29.4]} 41. Kg2 {[%clk
0:00:19.8]} 41... Nc1 {[%clk 0:00:30.1]} 42. Kf3 {[%clk 0:00:17.4]} 42... f5
{[%clk 0:00:21.8]} 43. Rd1 {[%clk 0:00:17.7]} 43... Kd5 {[%clk 0:00:22.1]} 44.
Nd2 {[%clk 0:00:15]} 44... Na2 {[%clk 0:00:21]} 45. Nf1 {[%clk 0:00:13.7]} 45...
Nb4 {[%clk 0:00:10]} 46. Nd2 {[%clk 0:00:13.9]} 46... Nc6 {[%clk 0:00:06.2]} 47.
Kf4 {[%clk 0:00:14]} 47... Ne5 {[%clk 0:00:07.1]} 48. Kxf5 {[%clk 0:00:13.6]}
48... Ng4 {[%clk 0:00:07.8]} 49. Nf3 {[%clk 0:00:02.9]} 49... Nxf2 {[%clk
0:00:06.8]} 50. Rg1 {[%clk 0:00:03]} 50... d2 {[%clk 0:00:06.5]} 51. Nxd2 {[%clk
0:00:01.4]} 51... Rxd2 {[%clk 0:00:07.4]} 52. Kg5 {[%clk 0:00:01.9]} 52... d3
{[%clk 0:00:05.9]} 53. Kxh5 {[%clk 0:00:02.1]} 53... Re2 {[%clk 0:00:05.8]} 54.
g4 {[%clk 0:00:02.2]} 54... d2 {[%clk 0:00:06.3]} 0-1

[Event "Early-Titled-Tuesday-Blitz-April-23-2024"]
[Site "Chess.com"]
[Date "2024.04.23"]
[Round "11"]
[White "Nikolakis2014"]
[Black "DonkyDonkyDonkey"]
[Result "0-1"]
[WhiteElo "2747"]
[BlackElo "2920"]
[TimeControl "180+1"]
[EndTime "10:11:57 PDT"]
[Termination "DonkyDonkyDonkey won by resignation"]

1. Nf3 {[%clk 0:02:57]} 1... Nf6 {[%clk 0:02:58.4]} 2. c4 {[%clk 0:02:56.1]}
2... g6 {[%clk 0:02:59.1]} 3. Nc3 {[%clk 0:02:55.3]} 3... Bg7 {[%clk 0:02:59.8]}
4. e4 {[%clk 0:02:55.6]} 4... e5 {[%clk 0:03:00.2]} 5. Nxe5 {[%clk 0:02:54.5]}
5... O-O {[%clk 0:03:01]} 6. d4 {[%clk 0:02:43.4]} 6... Re8 {[%clk 0:02:47.6]}
7. Bd3 {[%clk 0:02:31.4]} 7... c5 {[%clk 0:02:43.2]} 8. Nf3 {[%clk 0:02:30.3]}
8... cxd4 {[%clk 0:02:42.4]} 9. Nxd4 {[%clk 0:02:30.4]} 9... Nc6 {[%clk
0:02:37.7]} 10. Ndb5 {[%clk 0:02:25.8]} 10... d5 {[%clk 0:02:07]} 11. cxd5
{[%clk 0:02:24.7]} 11... Nxd5 {[%clk 0:02:07.1]} 12. Nxd5 {[%clk 0:02:10.8]}
12... Qxd5 {[%clk 0:02:08]} 13. O-O {[%clk 0:02:10.2]} 13... Qe5 {[%clk
0:02:04.6]} 14. g3 {[%clk 0:02:03.7]} 14... Bh3 {[%clk 0:01:59.6]} 15. Bf4
{[%clk 0:01:59]} 15... Qxb2 {[%clk 0:01:55.3]} 16. Rb1 {[%clk 0:01:57.4]} 16...
Qxa2 {[%clk 0:01:54.5]} 17. Nd6 {[%clk 0:01:55.9]} 17... Bxf1 {[%clk 0:01:52.8]}
18. Qxf1 {[%clk 0:01:53.6]} 18... Na5 {[%clk 0:01:19.4]} 19. Nxe8 {[%clk
0:01:32.7]} 19... Rxe8 {[%clk 0:01:20.3]} 20. Rc1 {[%clk 0:01:31.5]} 20... Bd4
{[%clk 0:01:04]} 21. Rc7 {[%clk 0:01:24.4]} 21... Bb6 {[%clk 0:01:03.8]} 22. Rd7
{[%clk 0:01:21.2]} 22... Rd8 {[%clk 0:00:57.4]} 23. Rxd8+ {[%clk 0:01:10.8]}
23... Bxd8 {[%clk 0:00:58.3]} 24. Qc1 {[%clk 0:01:08.6]} 24... Nc6 {[%clk
0:00:51.9]} 25. Bc4 {[%clk 0:01:02.2]} 25... Qa4 {[%clk 0:00:50.5]} 26. Bd5
{[%clk 0:00:59.5]} 26... Bf6 {[%clk 0:00:45]} 27. Kg2 {[%clk 0:00:49.3]} 27...
Qb5 {[%clk 0:00:30.6]} 28. Bh6 {[%clk 0:00:42.1]} 28... Qb2 {[%clk 0:00:26.1]}
29. Qc4 {[%clk 0:00:25.6]} 29... Bd4 {[%clk 0:00:17.8]} 30. Bxf7+ {[%clk
0:00:21.1]} 30... Kh8 {[%clk 0:00:18.5]} 31. Qe6 {[%clk 0:00:12.9]} 31... Qxf2+
{[%clk 0:00:18.6]} 32. Kh3 {[%clk 0:00:13.3]} 32... Qf1+ {[%clk 0:00:19.4]} 33.
Kh4 {[%clk 0:00:08.5]} 33... Qf6+ {[%clk 0:00:15.5]} 34. Bg5 {[%clk 0:00:05.2]}
34... Qxe6 {[%clk 0:00:15.7]} 35. Bxe6 {[%clk 0:00:05.6]} 35... Kg7 {[%clk
0:00:16.4]} 36. Bd5 {[%clk 0:00:05.9]} 36... Bf6 {[%clk 0:00:16.2]} 37. Kg4
{[%clk 0:00:05.1]} 37... Bxg5 {[%clk 0:00:15.9]} 38. Kxg5 {[%clk 0:00:05.7]}
38... h6+ {[%clk 0:00:16.3]} 39. Kf4 {[%clk 0:00:06.1]} 39... Kf6 {[%clk
0:00:17.2]} 40. g4 {[%clk 0:00:06.1]} 40... g5+ {[%clk 0:00:17.1]} 41. Ke3
{[%clk 0:00:06.5]} 41... Ke5 {[%clk 0:00:17.1]} 42. Kd3 {[%clk 0:00:06.7]} 42...
Nd8 {[%clk 0:00:17.1]} 43. Kc4 {[%clk 0:00:06.8]} 43... a6 {[%clk 0:00:13.6]}
44. Kc5 {[%clk 0:00:06.7]} 44... b5 {[%clk 0:00:14.3]} 45. Kb6 {[%clk
0:00:06.5]} 45... Ne6 {[%clk 0:00:12.2]} 46. Kxa6 {[%clk 0:00:06.5]} 46... Nc5+
{[%clk 0:00:11.8]} 47. Kxb5 {[%clk 0:00:06.4]} 47... Nxe4 {[%clk 0:00:12.7]} 48.
Bc4 {[%clk 0:00:03.8]} 48... Nd6+ {[%clk 0:00:11.5]} 49. Kc5 {[%clk 0:00:04.2]}
49... Nxc4 {[%clk 0:00:12.4]} 50. Kxc4 {[%clk 0:00:04.9]} 50... Kf4 {[%clk
0:00:13.3]} 51. Kd4 {[%clk 0:00:04.3]} 51... Kxg4 {[%clk 0:00:14.2]} 52. Ke4
{[%clk 0:00:04.9]} 52... Kh3 {[%clk 0:00:14.2]} 53. Kf5 {[%clk 0:00:05.6]} 53...
Kxh2 {[%clk 0:00:14.7]} 54. Kg6 {[%clk 0:00:06.2]} 54... g4 {[%clk 0:00:14.6]}
55. Kxh6 {[%clk 0:00:07]} 55... g3 {[%clk 0:00:15.5]} 0-1

[Event "Early-Titled-Tuesday-Blitz-April-23-2024"]
[Site "Chess.com"]
[Date "2024.04.23"]
[Round "11"]
[White "jk13"]
[Black "chess123456s"]
[Result "0-1"]
[WhiteElo "2685"]
[BlackElo "2626"]
[TimeControl "180+1"]
[EndTime "10:11:57 PDT"]
[Termination "chess123456s won by resignation"]

1. e4 {[%clk 0:02:58]} 1... e5 {[%clk 0:02:59.8]} 2. Nf3 {[%clk 0:02:57.7]} 2...
Nc6 {[%clk 0:02:58.8]} 3. Bc4 {[%clk 0:02:58.4]} 3... Nf6 {[%clk 0:02:58.6]} 4.
d3 {[%clk 0:02:59.3]} 4... Bc5 {[%clk 0:02:58.6]} 5. c3 {[%clk 0:02:59.2]} 5...
d6 {[%clk 0:02:58.9]} 6. O-O {[%clk 0:02:59.7]} 6... a5 {[%clk 0:02:59.3]} 7.
Bb3 {[%clk 0:03:00.6]} 7... h6 {[%clk 0:02:59.4]} 8. Nbd2 {[%clk 0:03:01.2]}
8... O-O {[%clk 0:02:59.6]} 9. h3 {[%clk 0:03:01.9]} 9... Be6 {[%clk 0:02:59.9]}
10. Re1 {[%clk 0:03:02.1]} 10... Bxb3 {[%clk 0:03:00]} 11. Qxb3 {[%clk
0:02:58.1]} 11... a4 {[%clk 0:02:59.7]} 12. Qd1 {[%clk 0:02:57.3]} 12... Re8
{[%clk 0:02:59.5]} 13. Nf1 {[%clk 0:02:57.1]} 13... d5 {[%clk 0:02:59.3]} 14.
Qe2 {[%clk 0:02:57.3]} 14... Bf8 {[%clk 0:02:58]} 15. Ng3 {[%clk 0:02:57.5]}
15... g6 {[%clk 0:02:58.3]} 16. Be3 {[%clk 0:02:52.9]} 16... Qd7 {[%clk
0:02:51.8]} 17. Rad1 {[%clk 0:02:52.3]} 17... Rad8 {[%clk 0:02:51.4]} 18. Qc2
{[%clk 0:02:49.8]} 18... b5 {[%clk 0:02:48.4]} 19. a3 {[%clk 0:02:48.8]} 19...
Qe6 {[%clk 0:02:34.8]} 20. Qc1 {[%clk 0:01:45.4]} 20... Kh7 {[%clk 0:02:27]} 21.
Qc2 {[%clk 0:01:31.2]} 21... dxe4 {[%clk 0:02:19.5]} 22. dxe4 {[%clk 0:01:30.4]}
22... Na5 {[%clk 0:02:18.9]} 23. Rxd8 {[%clk 0:01:14.9]} 23... Rxd8 {[%clk
0:02:18.3]} 24. Rd1 {[%clk 0:01:15.8]} 24... Rxd1+ {[%clk 0:02:07.6]} 25. Qxd1
{[%clk 0:01:16.7]} 25... Nc4 {[%clk 0:02:06.9]} 26. Bc1 {[%clk 0:01:03.1]} 26...
Bc5 {[%clk 0:01:57.1]} 27. Qd8 {[%clk 0:00:59.5]} 27... Qd6 {[%clk 0:01:53.6]}
28. Qxd6 {[%clk 0:00:59.1]} 28... Bxd6 {[%clk 0:01:54.5]} 29. Nd2 {[%clk
0:00:59.1]} 29... Nxd2 {[%clk 0:01:50.8]} 30. Bxd2 {[%clk 0:00:59.4]} 30... Nd7
{[%clk 0:01:51.3]} 31. f3 {[%clk 0:00:53.9]} 31... h5 {[%clk 0:01:42.2]} 32. Kf2
{[%clk 0:00:52.7]} 32... Nb6 {[%clk 0:01:41.6]} 33. Ke2 {[%clk 0:00:46.5]} 33...
Nc4 {[%clk 0:01:38.9]} 34. Bc1 {[%clk 0:00:46.5]} 34... Kg7 {[%clk 0:01:36.3]}
35. Nf1 {[%clk 0:00:46.7]} 35... Bc5 {[%clk 0:01:30]} 36. g4 {[%clk 0:00:45.1]}
36... hxg4 {[%clk 0:01:21.9]} 37. fxg4 {[%clk 0:00:46]} 37... Kf6 {[%clk
0:01:20.7]} 38. h4 {[%clk 0:00:45.6]} 38... Kg7 {[%clk 0:01:17.2]} 39. Nd2
{[%clk 0:00:37.8]} 39... Be3 {[%clk 0:01:07]} 40. Nxc4 {[%clk 0:00:22.1]} 40...
Bxc1 {[%clk 0:01:06.8]} 41. Kd1 {[%clk 0:00:16.9]} 41... Bf4 {[%clk 0:00:50.5]}
42. Na5 {[%clk 0:00:14.7]} 42... Bg3 {[%clk 0:00:49]} 43. h5 {[%clk 0:00:13.8]}
43... gxh5 {[%clk 0:00:49.9]} 44. gxh5 {[%clk 0:00:14.4]} 44... Kh6 {[%clk
0:00:50.3]} 45. Nc6 {[%clk 0:00:13.6]} 45... Kxh5 {[%clk 0:00:48.5]} 46. Ke2
{[%clk 0:00:11.5]} 46... Kg4 {[%clk 0:00:44.7]} 47. Kd3 {[%clk 0:00:11.2]} 47...
Kf3 {[%clk 0:00:39.4]} 48. Ne7 {[%clk 0:00:06.5]} 48... Bf4 {[%clk 0:00:39.4]}
49. Nd5 {[%clk 0:00:05.6]} 49... Bc1 {[%clk 0:00:39]} 50. Nxc7 {[%clk
0:00:05.1]} 50... f5 {[%clk 0:00:18.2]} 51. exf5 {[%clk 0:00:05.2]} 51... e4+
{[%clk 0:00:19.1]} 52. Kc2 {[%clk 0:00:05.7]} 52... e3 {[%clk 0:00:19.8]} 53. f6
{[%clk 0:00:04.6]} 53... e2 {[%clk 0:00:20.2]} 54. f7 {[%clk 0:00:05.1]} 54...
Bh6 {[%clk 0:00:20.6]} 55. Ne6 {[%clk 0:00:02.4]} 55... e1=Q {[%clk 0:00:20.4]}
56. Nd4+ {[%clk 0:00:03.1]} 0-1

[Event "Early-Titled-Tuesday-Blitz-April-23-2024"]
[Site "Chess.com"]
[Date "2024.04.23"]
[Round "11"]
[White "SaiAgni_98"]
[Black "GeorgiosSouleidis"]
[Result "1-0"]
[WhiteElo "2482"]
[BlackElo "2632"]
[TimeControl "180+1"]
[EndTime "10:11:58 PDT"]
[Termination "SaiAgni_98 won on time"]

1. c4 {[%clk 0:03:00.9]} 1... e5 {[%clk 0:03:00.1]} 2. g3 {[%clk 0:03:00.7]}
2... Nc6 {[%clk 0:02:57.6]} 3. Bg2 {[%clk 0:02:59.5]} 3... Bc5 {[%clk
0:02:57.8]} 4. Nc3 {[%clk 0:02:57.5]} 4... a6 {[%clk 0:02:58]} 5. e3 {[%clk
0:02:57.6]} 5... d6 {[%clk 0:02:56.6]} 6. Nge2 {[%clk 0:02:58.2]} 6... Ba7
{[%clk 0:02:57.1]} 7. O-O {[%clk 0:02:56.1]} 7... h5 {[%clk 0:02:57.1]} 8. d4
{[%clk 0:02:42]} 8... h4 {[%clk 0:02:55.9]} 9. b4 {[%clk 0:02:08.5]} 9... hxg3
{[%clk 0:02:53.8]} 10. fxg3 {[%clk 0:02:05.6]} 10... Qg5 {[%clk 0:02:46.1]} 11.
Rf2 {[%clk 0:01:51.1]} 11... Qh5 {[%clk 0:02:37.7]} 12. Bf3 {[%clk 0:01:40.7]}
12... Bg4 {[%clk 0:02:25.3]} 13. Bxg4 {[%clk 0:01:39.1]} 13... Qxg4 {[%clk
0:02:26.2]} 14. b5 {[%clk 0:01:26.7]} 14... axb5 {[%clk 0:02:27.1]} 15. Nd5
{[%clk 0:01:25.6]} 15... Rc8 {[%clk 0:01:57.7]} 16. cxb5 {[%clk 0:01:25.5]}
16... Nce7 {[%clk 0:01:57.8]} 17. Qa4 {[%clk 0:01:15.3]} 17... Nxd5 {[%clk
0:01:24.1]} 18. b6+ {[%clk 0:01:14.4]} 18... c6 {[%clk 0:01:23.8]} 19. Qxa7
{[%clk 0:00:46]} 19... Qd7 {[%clk 0:01:23]} 20. dxe5 {[%clk 0:00:44.2]} 20...
dxe5 {[%clk 0:01:21.3]} 21. Ba3 {[%clk 0:00:38.7]} 21... Nge7 {[%clk 0:01:17.6]}
22. Raf1 {[%clk 0:00:35.7]} 22... O-O {[%clk 0:01:15.5]} 23. Qa5 {[%clk
0:00:25.8]} 23... Ra8 {[%clk 0:00:38]} 24. Qc5 {[%clk 0:00:25.2]} 24... Rae8
{[%clk 0:00:28.1]} 25. e4 {[%clk 0:00:23.3]} 25... Nf6 {[%clk 0:00:26]} 26. Rxf6
{[%clk 0:00:13.4]} 26... gxf6 {[%clk 0:00:26.9]} 27. Rxf6 {[%clk 0:00:14.2]}
27... Ng6 {[%clk 0:00:23.1]} 28. Qe3 {[%clk 0:00:13.9]} 28... Ra8 {[%clk
0:00:16.6]} 29. Bxf8 {[%clk 0:00:10.8]} 29... Nxf8 {[%clk 0:00:16.8]} 30. Rf5
{[%clk 0:00:09]} 30... Ng6 {[%clk 0:00:16.1]} 31. h4 {[%clk 0:00:08.8]} 31...
Rxa2 {[%clk 0:00:14.8]} 32. h5 {[%clk 0:00:09.4]} 32... Qd1+ {[%clk 0:00:15.1]}
33. Kf2 {[%clk 0:00:06.9]} 33... Nf8 {[%clk 0:00:07]} 34. Rg5+ {[%clk
0:00:06.7]} 34... Kh7 {[%clk 0:00:05.4]} 35. Qf3 {[%clk 0:00:07.1]} 35... Rxe2+
{[%clk 0:00:03.8]} 36. Qxe2 {[%clk 0:00:07]} 36... Qd4+ {[%clk 0:00:04.2]} 37.
Kg2 {[%clk 0:00:06.9]} 37... Ne6 {[%clk 0:00:03.6]} 38. Rf5 {[%clk 0:00:06.4]}
38... Kg8 {[%clk 0:00:02.9]} 39. Qg4+ {[%clk 0:00:06.2]} 39... Kf8 {[%clk
0:00:03.4]} 40. Qg6 {[%clk 0:00:05.5]} 40... Qd2+ {[%clk 0:00:02.2]} 41. Kh3
{[%clk 0:00:05.6]} 1-0

[Event "Early-Titled-Tuesday-Blitz-April-23-2024"]
[Site "Chess.com"]
[Date "2024.04.23"]
[Round "11"]
[White "DanyKopy"]
[Black "Tagir45"]
[Result "1-0"]
[WhiteElo "2571"]
[BlackElo "2650"]
[TimeControl "180+1"]
[EndTime "10:12:06 PDT"]
[Termination "DanyKopy won on time"]

1. Nf3 {[%clk 0:03:00.9]} 1... d5 {[%clk 0:02:55.9]} 2. g3 {[%clk 0:03:00.2]}
2... Nc6 {[%clk 0:02:53.5]} 3. d4 {[%clk 0:02:59.3]} 3... Bf5 {[%clk 0:02:52.8]}
4. Bg2 {[%clk 0:02:58.9]} 4... e6 {[%clk 0:02:52.2]} 5. O-O {[%clk 0:02:58.6]}
5... Nb4 {[%clk 0:02:51.7]} 6. Na3 {[%clk 0:02:58.2]} 6... Nf6 {[%clk
0:02:51.7]} 7. c3 {[%clk 0:02:53]} 7... Nc6 {[%clk 0:02:50.6]} 8. Nb1 {[%clk
0:02:51.5]} 8... h6 {[%clk 0:02:49]} 9. b3 {[%clk 0:02:43]} 9... Bd6 {[%clk
0:02:43.4]} 10. a4 {[%clk 0:02:42.6]} 10... O-O {[%clk 0:02:42.5]} 11. Ba3
{[%clk 0:02:42.4]} 11... Ne7 {[%clk 0:02:36.6]} 12. Nbd2 {[%clk 0:02:38.8]}
12... Rc8 {[%clk 0:02:31.8]} 13. e3 {[%clk 0:02:22.1]} 13... c5 {[%clk 0:02:30]}
14. Qe2 {[%clk 0:02:17.9]} 14... cxd4 {[%clk 0:02:22.6]} 15. cxd4 {[%clk
0:02:11.7]} 15... Bxa3 {[%clk 0:02:20.7]} 16. Rxa3 {[%clk 0:02:11.1]} 16... Rc3
{[%clk 0:02:20.4]} 17. Ne5 {[%clk 0:02:04.6]} 17... Qd6 {[%clk 0:01:58.2]} 18.
Raa1 {[%clk 0:01:58.2]} 18... Rfc8 {[%clk 0:01:58.4]} 19. Rfd1 {[%clk
0:01:43.2]} 19... a6 {[%clk 0:01:53.3]} 20. Qe1 {[%clk 0:01:42.8]} 20... Rc2
{[%clk 0:01:36.8]} 21. Rdc1 {[%clk 0:01:37]} 21... Qc7 {[%clk 0:01:35.9]} 22.
Rxc2 {[%clk 0:01:24.8]} 22... Qxc2 {[%clk 0:01:36.8]} 23. Bf1 {[%clk 0:01:21.7]}
23... Ng6 {[%clk 0:01:26.6]} 24. Nxg6 {[%clk 0:01:14.7]} 24... Bxg6 {[%clk
0:01:26.2]} 25. b4 {[%clk 0:01:14.4]} 25... Qc3 {[%clk 0:01:12.3]} 26. b5 {[%clk
0:01:11.2]} 26... a5 {[%clk 0:01:11.1]} 27. Nf3 {[%clk 0:01:02.6]} 27... Nd7
{[%clk 0:01:07.3]} 28. Qxc3 {[%clk 0:00:39]} 28... Rxc3 {[%clk 0:01:06.9]} 29.
Be2 {[%clk 0:00:39.5]} 29... f6 {[%clk 0:01:03.8]} 30. Kf1 {[%clk 0:00:38.9]}
30... Nb6 {[%clk 0:01:02.9]} 31. Ke1 {[%clk 0:00:35.9]} 31... Kf7 {[%clk
0:00:48.5]} 32. Bd1 {[%clk 0:00:34.1]} 32... Ke7 {[%clk 0:00:43.3]} 33. Kd2
{[%clk 0:00:34.1]} 33... Rc8 {[%clk 0:00:34.3]} 34. Ke1 {[%clk 0:00:31]} 34...
Kd6 {[%clk 0:00:29.5]} 35. Nd2 {[%clk 0:00:29.9]} 35... Bc2 {[%clk 0:00:12.8]}
36. Rc1 {[%clk 0:00:20.1]} 36... Bxd1 {[%clk 0:00:09]} 37. Rxc8 {[%clk
0:00:20.7]} 37... Nxc8 {[%clk 0:00:07.9]} 38. Kxd1 {[%clk 0:00:21.6]} 38... Nb6
{[%clk 0:00:06]} 39. Nb3 {[%clk 0:00:21.8]} 39... Nxa4 {[%clk 0:00:05.9]} 40.
Nxa5 {[%clk 0:00:22]} 40... b6 {[%clk 0:00:04]} 41. Nb3 {[%clk 0:00:18]} 41...
Nc3+ {[%clk 0:00:04.3]} 42. Kc2 {[%clk 0:00:18]} 42... Nxb5 {[%clk 0:00:05.2]}
43. Nd2 {[%clk 0:00:16]} 43... Nc7 {[%clk 0:00:03.8]} 44. Kb3 {[%clk 0:00:15.8]}
44... Kc6 {[%clk 0:00:03.2]} 45. Kb4 {[%clk 0:00:15.9]} 45... Ne8 {[%clk
0:00:03.6]} 46. Nf3 {[%clk 0:00:11.3]} 46... Nd6 {[%clk 0:00:03.4]} 47. Ne1
{[%clk 0:00:09.1]} 47... Ne4 {[%clk 0:00:03.1]} 48. f3 {[%clk 0:00:09.5]} 48...
Nf2 {[%clk 0:00:02]} 49. Kc3 {[%clk 0:00:08]} 49... Kb5 {[%clk 0:00:01.4]} 50.
Kd2 {[%clk 0:00:08]} 50... Kc4 {[%clk 0:00:01.3]} 51. Ke2 {[%clk 0:00:08.2]}
51... Nh3 {[%clk 0:00:01.4]} 52. f4 {[%clk 0:00:08.6]} 1-0